bitfinex/quotes_SOLUSD_20251226
["timestamp","ask_amount","ask_price","bid_price","bid_amount"]
[1766757040048,0.72,125.05,125.01,0.7]
[1766757040543,9.24537999,125.06,125.02,7.9987202]
[1766757040749,9.96537999,125.08,125.03,0.7]
[1766757040953,9.24537999,125.07,125.03,0.7]
[1766757042458,9.96537999,125.08,125.03,0.7]
[1766757043058,9.96537999,125.08,125.04,8.71744081]
[1766757043447,8.68232736,125.12,125.04,27.99104285]
[1766757043651,9.93537999,125.11,125.05,0.72]
[1766757044861,9.24537999,125.1,125.06,7.99616184]
[1766757045069,0.67,125.08,125.03,0.68]
[1766757045557,9.24537999,125.12,125.08,0.68]
[1766757045759,0.67,125.13,125.08,0.68]
[1766757045954,9.91537999,125.13,125.08,0.68]
[1766757046847,0.67,125.11,125.05,20.67200319]
[1766757047061,7.99182996,125.13,125.06,7.99560164]
[1766757047267,9.24537999,125.11,125.07,0.68]
[1766757048147,9.24537999,125.09,125.05,7.99663289]
[1766757048356,9.24537999,125.08,125.05,7.99663289]
[1766757048746,9.91537999,125.06,125.01,15.28]
[1766757048971,9.91537999,125.06,125.02,8.6787202]
[1766757049653,14.6,125.12,125.02,8.6787202]
[1766757049654,9.91537999,125.08,125.06,3.75804]
[1766757049852,0.67,125.07,125.06,3.75804]
[1766757050167,9.91537999,125.07,125.06,3.75804]
[1766757051160,9.91537999,125.07,125.02,8.6787202]
[1766757051368,9.24537999,125.06,125.02,8.6787202]
[1766757052454,9.24537999,125.05,125.02,8.6787202]
[1766757052657,0.67,125.07,125.02,37.9209007]
[1766757052853,0.67,125.07,125.03,9.24537999]
[1766757053560,9.24537999,125.1,125.03,9.24537999]
[1766757053757,9.24537999,125.1,125.02,42.59552071]
[1766757054075,9.24537999,125.1,125.04,7.99744081]
[1766757054261,9.24537999,125.1,125.04,27.99104285]
[1766757055379,9.24537999,125.09,125.04,27.99104285]
[1766757056053,9.24537999,125.09,125.04,19.99360204]
[1766757057469,9.24537999,125.08,125.03,27.99328161]
[1766757057670,7.99316239,125.11,125.03,27.99328161]
[1766757057973,9.24537999,125.08,125.03,27.99328161]
[1766757059175,9.24537999,125.09,125.03,27.99328161]
[1766757060477,9.24537999,125.09,125.03,37.2386616]
[1766757061768,7.99296618,125.11,125.03,27.99328161]
[1766757061965,9.24537999,125.07,125.03,27.99328161]
[1766757062165,9.24537999,125.04,124.97,18.02302521]
[1766757062362,9.24537999,125.03,125.0,7.99954575]
[1766757062856,9.24537999,125.01,124.97,20.00408262]
[1766757063176,9.24537999,125.02,124.97,20.00408262]
[1766757063475,9.24537999,125.01,124.97,20.00408262]
[1766757063876,19.99033876,125.07,124.97,28.00540135]
[1766757064079,9.24537999,125.0,124.94,34.60918784]
[1766757064279,186.49033876,125.07,124.96,17.24770749]
[1766757064465,14.6,125.06,124.96,17.24770749]
[1766757064663,9.24537999,125.03,124.96,17.24770749]
[1766757064867,9.24537999,125.02,124.96,17.24770749]
[1766757065281,9.24537999,125.02,124.96,37.25410953]
[1766757067386,9.24537999,125.02,124.96,20.00640204]
[1766757067583,9.24537999,125.02,124.96,29.25178203]
[1766757068059,9.24537999,125.02,124.95,8.00320128]
[1766757068060,9.24537999,125.0,124.95,8.00320128]
[1766757068268,14.6,125.01,124.89,19.17415383]
[1766757068464,9.24537999,125.01,124.9,23.84537999]
[1766757068666,9.24537999,124.96,124.92,8.00472159]
[1766757069168,9.24537999,124.96,124.91,8.00559053]
[1766757069379,9.24537999,124.95,124.91,8.00559053]
[1766757069683,9.24537999,124.95,124.89,10.43767296]
[1766757069875,9.24537999,124.95,124.89,19.68305295]
[1766757070288,9.24537999,124.95,124.89,9.24537999]
[1766757070772,9.24537999,124.95,124.88,82.66530501]
[1766757070973,9.24537999,124.89,124.84,0.2]
[1766757071160,9.24537999,124.91,124.86,8.0089199]
[1766757071362,9.24537999,124.93,124.87,8.00823002]
[1766757071581,9.24537999,124.93,124.87,9.24537999]
[1766757071767,9.24537999,124.92,124.86,9.24537999]
[1766757072166,9.24537999,124.91,124.85,22.60961153]
[1766757072367,9.24537999,124.91,124.85,31.85499152]
[1766757072567,9.24537999,124.92,124.85,31.85499152]
[1766757072772,9.24537999,124.92,124.85,42.63364036]
[1766757072968,9.24537999,124.91,124.85,51.87902035]
[1766757073891,9.24537999,124.9,124.85,42.63364036]
[1766757076608,9.24537999,124.94,124.87,9.24537999]
[1766757077087,9.24537999,124.94,124.86,9.24537999]
[1766757077399,9.24537999,124.93,124.86,9.24537999]
[1766757077594,9.24537999,124.93,124.87,28.02915031]
[1766757078396,34.60513819,124.97,124.87,28.02915031]
[1766757078397,9.24537999,124.92,124.87,28.02915031]
[1766757078994,9.24537999,124.92,124.87,38.46682327]
[1766757080492,9.24537999,125.0,124.94,10.43767296]
[1766757081498,9.24537999,125.0,124.95,18.44033227]
[1766757081697,9.24537999,124.98,124.95,8.00265931]
[1766757082093,9.24537999,124.99,124.96,14.9]
[1766757082300,9.24537999,125.0,124.96,14.9]
[1766757082474,7.99888434,125.02,124.96,14.9]
[1766757082680,23.84537999,125.01,124.96,14.9]
[1766757082980,23.84537999,125.03,124.96,9.24537999]
[1766757083493,9.24537999,125.01,124.95,37.2560425]
[1766757083694,22.59856177,125.03,124.95,28.01066251]
[1766757083695,9.24537999,125.0,124.95,28.01066251]
[1766757083887,39.97975834,125.07,124.95,28.01066251]
[1766757083888,166.5,125.15,124.99,10.43767296]
[1766757084197,9.24537999,125.08,125.02,9.24537999]
[1766757084576,9.24537999,125.08,125.01,9.24537999]
[1766757084804,9.24537999,125.07,125.01,9.24537999]
[1766757085397,9.24537999,125.07,125.02,7.9987202]
[1766757085878,9.24537999,125.07,125.02,27.99552071]
[1766757086079,9.24537999,125.08,125.02,27.99552071]
[1766757087200,19.98390706,125.11,125.01,7.99936005]
[1766757087402,23.84537999,125.07,125.01,17.24474004]
[1766757088285,23.84537999,125.07,125.01,37.24211765]
[1766757090808,14.6,125.07,125.02,9.24537999]
[1766757091926,9.24537999,125.05,125.0,7.99986541]
[1766757092089,9.24537999,125.05,125.03,13.4]
[1766757092412,9.24537999,125.05,125.0,7.99986541]
[1766757092714,9.24537999,125.06,125.0,7.99986541]
[1766757093413,9.24537999,125.06,125.0,17.2452454]
[1766757093710,14.6,125.05,125.0,17.2452454]
[1766757094093,14.6,125.05,125.0,7.99986541]
[1766757094301,14.6,125.05,125.0,17.2452454]
[1766757095114,23.84537999,125.05,125.0,7.99986541]
[1766757096105,7.99570351,125.07,125.0,17.2452454]
[1766757096293,14.6,125.04,125.0,37.2452454]
[1766757096495,14.6,125.04,125.0,98.7452454]
[1766757096703,23.84537999,125.04,124.99,18.43813873]
[1766757097186,23.84537999,125.04,125.0,14.9]
[1766757097387,23.84537999,125.04,124.99,8.00046577]
[1766757098705,9.24537999,125.03,124.98,8.00106615]
[1766757098915,9.24537999,125.02,124.97,8.0013258]
[1766757099118,23.84537999,125.01,124.97,8.00152531]
[1766757099821,9.24537999,124.99,124.92,9.24537999]
[1766757100114,20.29606143,124.98,124.92,5.69606143]
[1766757100318,14.6,124.98,124.94,8.00379698]
[1766757102436,5.69606143,124.97,124.91,20.01409009]
[1766757102718,5.69606143,124.95,124.89,25.71303631]
[1766757102907,14.6,124.94,124.89,25.71303631]
[1766757103109,14.6,124.94,124.9,33.71847936]
[1766757103622,14.6,124.94,124.9,44.15615232]
[1766757103805,14.6,124.94,124.9,33.71847936]
[1766757104009,14.6,124.94,124.9,44.15615232]
[1766757105821,19.99855595,125.01,124.9,38.46009089]
[1766757106002,5.69606143,124.99,124.93,16.13373439]
[1766757106199,5.69606143,124.99,124.94,8.00384184]
[1766757106808,14.6,124.98,124.94,8.00384184]
[1766757107198,5.69606143,124.99,124.94,8.00384184]
[1766757107400,20.29606143,124.99,124.94,8.00384184]
[1766757108620,14.6,124.98,124.94,8.00384184]
[1766757109406,14.6,124.98,124.95,13.4]
[1766757110514,14.6,124.99,124.95,21.4028773]
[1766757110823,20.29606143,124.99,124.95,21.4028773]
[1766757115121,166.5,125.07,124.97,5.69606143]
[1766757115310,5.69606143,125.03,124.97,5.69606143]
[1766757115492,14.6,125.02,124.97,5.69606143]
[1766757116202,14.6,125.02,124.98,8.0012802]
[1766757118422,13.69415183,125.03,124.98,8.0012802]
[1766757118718,7.99296618,125.11,125.0,5.69606143]
[1766757118936,5.69606143,125.07,125.0,5.69606143]
[1766757119143,5.69606143,125.07,124.98,42.60448071]
[1766757119144,5.69606143,125.05,124.99,5.69606143]
[1766757119949,5.69606143,125.05,125.0,8.0]
[1766757120146,5.69606143,125.04,125.0,8.0]
[1766757121228,5.69606143,125.04,124.99,28.00082736]
[1766757121423,20.29606143,125.04,124.99,28.00082736]
[1766757122849,14.6,125.04,124.99,33.69688879]
[1766757124148,14.6,125.04,124.99,20.00018731]
[1766757124348,14.6,125.04,124.99,25.69624874]
[1766757125451,14.6,125.04,124.99,5.69606143]
[1766757125634,14.6,125.04,124.99,67.19606143]
[1766757126232,14.6,125.04,125.0,8.0]
[1766757126841,5.69606143,125.08,125.02,5.69606143]
[1766757127043,28.29030557,125.09,125.03,5.69606143]
[1766757127239,5.69606143,125.08,125.02,5.69606143]
[1766757127631,22.59424414,125.09,125.02,5.69606143]
[1766757127824,5.69606143,125.08,125.02,5.69606143]
[1766757128847,5.69606143,125.07,125.01,5.69606143]
[1766757130090,7.99501897,125.08,125.01,5.69606143]
[1766757130229,20.29606143,125.07,125.01,5.69606143]
[1766757130425,14.6,125.07,125.0,38.43767296]
[1766757130631,20.29606143,125.07,125.01,5.69606143]
[1766757131549,20.29606143,125.07,125.02,7.9987202]
[1766757131944,14.6,125.07,125.02,13.69478163]
[1766757132152,14.6,125.07,125.02,33.69158214]
[1766757132357,14.6,125.07,125.02,27.99552071]
[1766757132563,14.6,125.08,125.03,5.69606143]
[1766757132860,20.29606143,125.08,125.02,33.19158214]
[1766757133649,20.29606143,125.08,125.03,22.89746777]
[1766757133961,16.72333345,125.08,125.03,22.89746777]
[1766757134262,22.59494225,125.08,125.03,22.89746777]
[1766757134458,2.12333345,125.07,125.03,22.89746777]
[1766757135063,2.12333345,125.07,125.03,14.9]
[1766757135662,7.99360511,125.1,125.03,22.89778532]
[1766757135842,16.72333345,125.09,125.03,10.12111877]
[1766757137267,14.6,125.09,125.03,2.12333345]
[1766757137464,16.72333345,125.09,125.03,2.12333345]
[1766757138660,2.12333345,125.16,125.02,19.99561986]
[1766757138968,2.12333345,125.1,125.04,14.9]
[1766757139141,2.12333345,125.1,125.05,7.99680127]
[1766757139854,10.1169817,125.1,125.05,7.99680127]
[1766757140168,10.1169817,125.1,125.04,34.89359331]
[1766757140169,2.12333345,125.07,125.04,14.9]
[1766757140337,2.12333345,125.07,125.03,10.43767296]
[1766757140664,2.12333345,125.07,125.03,18.43535888]
[1766757141266,2.12333345,125.08,125.03,7.99768592]
[1766757141451,14.6,125.07,125.03,7.99768592]
[1766757143743,14.6,125.07,125.04,13.3]
[1766757146748,2.12333345,125.08,125.04,13.3]
[1766757147043,7.99424414,125.09,125.04,13.3]
[1766757147248,16.72333345,125.08,125.04,13.3]
[1766757148665,14.6,125.07,125.04,21.29739757]
[1766757152372,16.72333345,125.08,125.04,21.29739757]
[1766757154278,24.71824542,125.08,125.04,13.3]
[1766757154454,16.72333345,125.08,125.04,13.3]
[1766757155056,14.6,125.08,125.04,13.3]
[1766757155262,2.12333345,125.07,125.04,13.3]
[1766757155853,2.12333345,125.06,125.04,13.3]
[1766757156553,14.6,125.06,125.04,13.3]
[1766757156966,16.72333345,125.06,125.04,13.3]
[1766757157670,7.99448705,125.09,125.04,13.3]
[1766757157856,16.72333345,125.08,125.04,21.29743769]
[1766757158056,14.6,125.07,125.04,21.29743769]
[1766757158980,7.99232736,125.12,125.05,2.12333345]
[1766757159163,14.6,125.11,125.05,2.12333345]
[1766757159361,14.6,125.1,125.05,2.12333345]
[1766757159559,2.12333345,125.08,125.04,13.3]
[1766757159857,2.12333345,125.06,125.02,7.9987059]
[1766757160778,2.12333345,125.06,125.01,7.99936005]
[1766757161382,2.12333345,125.05,125.01,7.99936005]
[1766757161583,2.12333345,125.05,125.02,14.9]
[1766757161959,3.31886614,125.06,125.02,14.9]
[1766757162593,3.31886614,125.05,125.02,14.9]
[1766757163392,3.31886614,125.04,125.02,14.9]
[1766757166077,3.31886614,125.05,125.02,14.9]
[1766757168689,17.91886614,125.05,125.02,14.9]
[1766757169188,25.91574453,125.05,125.02,14.9]
[1766757169494,25.91574453,125.05,124.97,20.00414231]
[1766757169495,3.31886614,125.03,124.97,20.00414231]
[1766757169795,3.31886614,125.02,124.98,8.0008901]
[1766757170093,17.91886614,125.02,124.98,8.0008901]
[1766757170489,3.31886614,125.01,124.97,8.0017988]
[1766757170672,3.31886614,125.01,124.96,11.3210554]
[1766757171568,3.31886614,125.01,124.97,8.00176175]
[1766757171990,3.31886614,125.0,124.97,8.00176175]
[1766757172692,3.31886614,125.0,124.95,8.00268191]
[1766757173297,7.99936005,125.01,124.96,8.00254653]
[1766757173482,11.31822619,125.01,124.96,8.00254653]
[1766757173682,25.91822619,125.01,124.96,11.32141267]
[1766757174681,25.91822619,125.01,124.95,3.31886614]
[1766757176991,25.91822619,125.01,124.95,11.3215123]
[1766757176992,11.31822619,125.01,124.95,11.3215123]
[1766757177177,14.6,125.01,124.95,28.01064936]
[1766757177379,11.31717055,125.03,124.97,3.31886614]
[1766757177581,25.91717055,125.03,124.97,3.31886614]
[1766757178080,14.6,125.02,124.98,3.31886614]
[1766757178397,295.42,125.09,124.98,3.31886614]
[1766757178398,27.98209145,125.08,124.98,11.31993575]
[1766757178587,3.31886614,125.03,124.98,11.31993575]
[1766757178791,14.6,125.02,124.98,8.00106961]
[1766757178997,14.6,125.02,124.98,11.31993575]
[1766757180394,3.31886614,125.05,125.0,11.31886614]
[1766757180711,25.91537209,125.06,125.01,3.31886614]
[1766757180878,25.91537209,125.06,125.0,8.0]
[1766757181084,25.91537209,125.06,125.01,3.31886614]
[1766757181283,11.31537209,125.06,125.01,3.31886614]
[1766757181506,25.91537209,125.06,125.01,3.31886614]
[1766757181707,25.91537209,125.06,125.0,11.31886614]
[1766757182078,3.31886614,125.05,125.0,11.31886614]
[1766757182274,3.31886614,125.04,125.0,8.0]
[1766757182783,3.31886614,125.05,125.0,11.31886614]
[1766757184209,22.59650595,125.06,125.01,3.31886614]
[1766757184397,25.91537209,125.06,125.01,3.31886614]
[1766757184905,3.31886614,125.06,125.01,3.31886614]
[1766757186083,3.31886614,125.06,124.99,42.60142008]
[1766757186286,3.31886614,125.06,125.01,3.31886614]
[1766757186691,3.31886614,125.05,125.0,3.31886614]
[1766757187516,11.31552671,125.06,125.01,3.31886614]
[1766757188411,25.91552671,125.06,125.01,3.31886614]
[1766757189806,3.31886614,125.05,125.0,3.31886614]
[1766757190138,11.31630987,125.04,124.99,25.91925196]
[1766757190615,3.31886614,125.02,124.97,11.32036065]
[1766757190994,14.6,125.03,124.98,11.32004976]
[1766757190995,17.91886614,125.03,124.98,11.32004976]
[1766757192113,22.59837171,125.03,124.98,11.32004976]
[1766757192321,25.91723785,125.03,124.98,11.32004976]
[1766757193213,22.59837171,125.03,124.96,8.00256081]
[1766757193517,25.91723785,125.03,124.98,3.31886614]
[1766757193918,3.31886614,125.02,124.96,28.00896285]
[1766757194120,3.31886614,125.02,124.97,3.31886614]
[1766757195609,14.6,125.03,124.97,8.00166291]
[1766757195810,14.6,125.03,124.99,3.31886614]
[1766757196624,14.6,125.03,124.97,8.00166291]
[1766757196825,7.99719826,125.05,125.0,3.31886614]
[1766757197014,7.99719826,125.05,125.01,3.31886614]
[1766757197325,25.91510039,125.06,125.01,3.31886614]
[1766757197711,3.31886614,125.05,125.0,3.31886614]
[1766757198702,11.31579161,125.05,125.0,11.31861757]
[1766757201629,25.91579161,125.05,125.0,11.31861757]
[1766757202129,25.91579161,125.05,124.99,28.00224017]
[1766757202336,25.91579161,125.05,125.0,3.31886614]
[1766757203209,17.91886614,125.05,125.0,3.31886614]
[1766757203432,17.91886614,125.05,124.99,28.00224017]
[1766757203433,7.99640711,125.06,125.01,3.31886614]
[1766757203607,25.91527325,125.06,125.01,3.31886614]
[1766757204737,3.31886614,125.05,125.0,3.31886614]
[1766757205321,3.31886614,125.04,124.99,28.00224017]
[1766757205632,11.31527325,125.06,125.02,3.31886614]
[1766757205849,25.91527325,125.06,125.01,3.31886614]
[1766757207142,22.59640711,125.06,125.02,3.31886614]
[1766757207338,30.42419703,125.09,125.02,3.31886614]
[1766757207529,3.31886614,125.07,125.02,3.31886614]
[1766757210144,11.31496823,125.07,125.02,3.31886614]
[1766757210335,14.6,125.06,125.02,3.31886614]
[1766757210723,17.91886614,125.06,125.02,3.31886614]
[1766757211141,14.6,125.06,125.02,3.31886614]
[1766757211434,17.91886614,125.06,125.02,3.31886614]
[1766757212146,7.99488327,125.08,125.02,7.99847747]
[1766757212336,3.31886614,125.11,125.06,3.31886614]
[1766757212543,14.6,125.12,125.08,3.31886614]
[1766757213044,11.31055478,125.13,125.08,3.31886614]
[1766757213242,14.6,125.12,125.08,3.31886614]
[1766757213632,22.59265463,125.12,125.07,7.99516196]
[1766757213831,22.59265463,125.12,125.08,3.31886614]
[1766757214147,25.91152077,125.12,125.07,11.3140281]
[1766757214537,3.31886614,125.1,124.99,40.00211924]
[1766757214727,3.31886614,125.1,125.05,3.31886614]
[1766757214928,14.6,125.1,125.07,3.31886614]
[1766757215446,14.6,125.1,125.06,11.31462378]
[1766757215949,11.31192171,125.11,125.06,11.31462378]
[1766757216154,22.59305557,125.11,125.06,11.31462378]
[1766757216551,3.31886614,125.1,125.04,10.43767296]
[1766757216749,3.31886614,125.1,125.05,3.31886614]
[1766757217136,42.57547104,125.11,125.05,3.31886614]
[1766757217645,3.31886614,125.1,125.05,11.31549668]
[1766757218157,11.31311028,125.09,125.04,3.31886614]
[1766757218361,11.31311028,125.09,125.03,11.31655221]
[1766757218654,14.6,125.08,125.03,11.31655221]
[1766757218858,14.6,125.08,125.03,7.99768607]
[1766757219062,17.91886614,125.08,125.03,11.31655221]
[1766757219234,3.31886614,125.07,125.02,11.31743343]
[1766757219429,17.91886614,125.08,125.02,11.31743343]
[1766757220143,7.9955225,125.07,125.02,11.31743343]
[1766757223347,22.5955225,125.07,125.02,11.31743343]
[1766757223542,7.9955225,125.07,125.02,11.31743343]
[1766757223853,22.5955225,125.07,125.02,11.31743343]
[1766757224056,22.5955225,125.07,125.02,2.12342767]
[1766757225355,22.5955225,125.07,125.0,27.99914595]
[1766757225556,22.5955225,125.07,125.02,2.12342767]
[1766757226228,7.9955225,125.07,125.02,2.12342767]
[1766757226452,22.5955225,125.07,125.02,2.12342767]
[1766757226858,24.71895017,125.07,125.02,2.12342767]
[1766757227047,24.71895017,125.07,125.0,27.99914595]
[1766757227252,24.71895017,125.07,125.02,2.12342767]
[1766757227838,42.58432876,125.07,125.01,2.12342767]
[1766757228042,2.12342767,125.06,125.01,2.12342767]
[1766757228735,44.70775643,125.07,125.01,2.12342767]
[1766757230154,14.6,125.06,125.0,8.0]
[1766757230352,14.6,125.06,125.01,2.12342767]
[1766757231251,2.12342767,125.06,125.0,10.12342767]
[1766757231463,2.12342767,125.05,125.0,10.12342767]
[1766757231637,2.12342767,125.01,124.96,2.12342767]
[1766757231832,2.12342767,125.01,124.93,40.02230439]
[1766757231833,2.12342767,125.0,124.95,10.12624242]
[1766757232036,2.12342767,125.0,124.96,8.00237345]
[1766757232255,14.6,125.02,124.94,10.1267232]
[1766757232256,2.12342767,124.99,124.94,10.1267232]
[1766757232437,14.6,125.02,124.95,8.00299262]
[1766757232638,2.12342767,125.0,124.95,10.12642029]
[1766757233344,16.72342767,125.0,124.95,10.12642029]
[1766757234639,22.5989533,125.02,124.97,2.12342767]
[1766757234840,22.5989533,125.02,124.98,2.12342767]
[1766757235045,22.5989533,125.02,124.97,2.12342767]
[1766757235247,22.5989533,125.02,124.97,10.12504323]
[1766757235446,24.72238097,125.02,124.97,10.12504323]
[1766757235647,2.12342767,124.99,124.94,2.12342767]
[1766757235843,16.72342767,124.99,124.94,2.12342767]
[1766757236860,16.72342767,124.99,124.95,8.00300886]
[1766757237050,24.72413335,124.99,124.94,8.0037041]
[1766757237253,2.12342767,124.98,124.94,8.0037041]
[1766757237562,2.12342767,124.97,124.93,8.00441814]
[1766757237745,22.60070568,124.99,124.94,8.00365821]
[1766757237746,8.00070568,124.99,124.94,8.00365821]
[1766757238066,14.6,124.98,124.94,8.00365821]
[1766757238267,16.72342767,124.98,124.94,8.00365821]
[1766757238466,16.72342767,124.98,124.93,8.00427951]
[1766757238652,16.72342767,124.98,124.94,8.00381796]
[1766757238851,16.72342767,124.98,124.93,8.00423628]
[1766757239368,24.72491451,124.98,124.93,8.00423628]
[1766757240266,10.12491451,124.98,124.93,8.00423628]
[1766757240471,24.72491451,124.98,124.93,8.00423628]
[1766757240649,2.12342767,124.97,124.93,8.00423628]
[1766757241746,24.72491451,124.98,124.92,10.12855094]
[1766757242845,24.72491451,124.98,124.93,10.12786332]
[1766757243046,22.60148684,124.98,124.93,10.12786332]
[1766757243272,24.72491451,124.98,124.93,2.12342767]
[1766757244265,2.12342767,124.94,124.89,10.33009673]
[1766757244479,2.12342767,124.94,124.89,0.2]
[1766757244480,2.12342767,124.93,124.89,0.2]
[1766757244646,2.12342767,124.9,124.87,0.2]
[1766757244851,10.43767296,124.95,124.87,0.2]
[1766757244852,16.72342767,124.91,124.87,0.2]
[1766757245068,2.12342767,124.88,124.87,1e-08]
[1766757245350,16.72342767,124.88,124.86,1e-08]
[1766757245648,2.12342767,124.87,124.86,1e-08]
[1766757245863,2.12342767,124.87,124.84,0.2]
[1766757246048,14.6,124.88,124.84,0.2]
[1766757246243,14.6,124.87,124.84,0.2]
[1766757248173,20.01351425,124.92,124.84,2.32342767]
[1766757248373,14.6,124.89,124.86,2.12342767]
[1766757248779,18.44301928,124.92,124.86,2.12342767]
[1766757248959,14.6,124.91,124.86,2.12342767]
[1766757249155,2.12342767,124.89,124.84,2.32342767]
[1766757249482,2.12342767,124.89,124.84,0.2]
[1766757250374,2.12342767,124.88,124.84,8.21023985]
[1766757250577,42.62038119,124.91,124.84,8.21023985]
[1766757250767,2.12342767,124.88,124.84,8.21023985]
[1766757251356,14.6,124.91,124.84,0.2]
[1766757251677,2.12342767,124.88,124.84,0.2]
[1766757251855,14.62,124.88,124.84,0.2]
[1766757252061,16.74342767,124.88,124.84,0.2]
[1766757254688,24.75116414,124.88,124.84,0.2]
[1766757256565,14.62,124.87,124.84,0.2]
[1766757259790,8.00640512,124.9,124.84,8.20990651]
[1766757259977,16.74342767,124.89,124.84,10.33333418]
[1766757260673,14.62,124.88,124.86,2.12342767]
[1766757261671,24.74939335,124.91,124.87,2.12342767]
[1766757262194,24.74939335,124.91,124.86,2.12342767]
[1766757263271,22.62596568,124.91,124.86,2.12342767]
[1766757263504,24.74939335,124.91,124.86,2.12342767]
[1766757265181,22.62596568,124.91,124.88,2.12342767]
[1766757267302,22.62596568,124.91,124.87,2.12342767]
[1766757267303,24.74939335,124.91,124.87,2.12342767]
[1766757267679,22.62596568,124.91,124.87,2.12342767]
[1766757267886,44.76380372,124.91,124.87,2.12342767]
[1766757268370,14.62,124.9,124.87,2.12342767]
[1766757269102,14.62,124.89,124.85,8.00955817]
[1766757269291,14.62,124.89,124.87,2.12342767]
[1766757270191,8.0064539,124.9,124.87,2.12342767]
[1766757270492,14.62,124.89,124.87,2.12342767]
[1766757271405,10.12855094,124.92,124.87,2.12342767]
[1766757271605,8.00586201,124.91,124.88,2.12342767]
[1766757271905,14.62,124.9,124.88,2.12342767]
[1766757272791,8.00586201,124.91,124.86,8.00874787]
[1766757272991,14.62,124.9,124.87,2.12342767]
[1766757273392,22.62655633,124.9,124.87,2.12342767]
[1766757273706,24.749984,124.9,124.86,2.12342767]
[1766757273883,24.749984,124.9,124.84,8.21001086]
[1766757273884,2.12342767,124.89,124.85,2.12342767]
[1766757275100,10.13092088,124.89,124.85,2.12342767]
[1766757276312,10.13092088,124.89,124.84,8.21001086]
[1766757276907,44.75911645,124.93,124.84,53.29331662]
[1766757277206,2.12342767,124.91,124.84,53.29331662]
[1766757277381,42.63568878,124.93,124.84,53.29331662]
[1766757277382,16.74342767,124.9,124.84,20.77111149]
[1766757277582,16.74342767,124.89,124.84,20.77111149]
[1766757277782,16.74342767,124.89,124.84,18.64768382]
[1766757278110,16.74342767,124.89,124.84,20.77111149]
[1766757279000,14.62,124.89,124.84,20.77111149]
[1766757279311,16.74342767,124.89,124.84,18.64768382]
[1766757280412,16.74342767,124.89,124.84,20.77111149]
[1766757281019,16.74342767,124.89,124.84,18.64768382]
[1766757281196,16.74342767,124.89,124.84,20.77111149]
[1766757281893,24.75048421,124.89,124.84,8.21001086]
[1766757282507,2.12342767,124.88,124.84,8.21001086]
[1766757282704,2.12342767,124.87,124.84,0.2]
[1766757285410,8.00774633,124.88,124.84,0.2]
[1766757285613,2.12342767,124.87,124.84,0.2]
[1766757286009,3.32857381,124.87,124.84,0.2]
[1766757286916,8.00774633,124.88,124.84,0.2]
[1766757287123,3.32857381,124.86,124.84,0.2]
[1766757288227,8.00256081,124.96,124.85,28.38624677]
[1766757288403,8.00256081,124.96,124.9,3.32857381]
[1766757288724,8.00256081,124.96,124.91,3.32857381]
[1766757288907,3.32857381,124.95,124.9,3.32857381]
[1766757289110,3.32857381,124.95,124.89,13.76624677]
[1766757289513,25.95113462,124.96,124.9,3.32857381]
[1766757289715,3.32857381,124.95,124.89,13.76624677]
[1766757290099,3.32857381,124.95,124.9,8.00640512]
[1766757290612,11.33179207,124.95,124.9,8.00640512]
[1766757291804,3.32857381,124.93,124.89,18.44461826]
[1766757293709,3.32857381,124.93,124.89,8.0069453]
[1766757294212,3.32857381,124.92,124.86,84.85011151]
[1766757294406,3.32857381,124.92,124.87,8.00769489]
[1766757294633,3.32857381,124.92,124.87,11.3362687]
[1766757294811,11.33382619,124.92,124.87,11.3362687]
[1766757295214,3.32857381,124.91,124.86,18.44638217]
[1766757295411,3.32857381,124.91,124.86,21.77495598]
[1766757296506,11.33382619,124.92,124.86,21.77495598]
[1766757298133,3.32857381,124.91,124.85,11.33813207]
[1766757300435,28.01806057,124.92,124.86,3.32857381]
[1766757300607,25.95382619,124.92,124.87,3.32857381]
[1766757301038,25.95382619,124.92,124.86,3.32857381]
[1766757302313,3.32857381,124.91,124.85,31.3621609]
[1766757302513,11.33497893,124.9,124.85,8.00955826]
[1766757302758,8.00597714,124.91,124.85,8.00955826]
[1766757302912,11.33455095,124.91,124.86,3.32857381]
[1766757304036,3.32857381,124.96,124.9,3.32857381]
[1766757304209,3.32857381,124.96,124.88,10.43767296]
[1766757304210,3.32857381,124.96,124.91,3.32857381]
[1766757304612,11.33145102,124.96,124.91,11.33432377]
[1766757304849,11.33145102,124.96,124.91,8.00574996]
[1766757305211,25.95145102,124.96,124.91,8.00574996]
[1766757305610,3.32857381,124.95,124.89,13.76624677]
[1766757305830,3.32857381,124.94,124.89,18.44427538]
[1766757306543,3.32857381,124.94,124.9,8.00632006]
[1766757306746,3.32857381,124.94,124.89,18.44469548]